[Event "FIDE WYCC Girls U18 2023"]
[Site "Montesilvano"]
[Date "2023.11.16"]
[Round "4.31"]
[White "Tsapaki, Asimenia"]
[Black "Lu, Yun-Ru"]
[Result "1/2-1/2"]
[ECO "C45"]
[WhiteElo "1702"]
[BlackElo "1284"]
[Annotator "NA RC"]
[PlyCount "107"]
[EventDate "2023.11.13"]
[EventType "swiss"]
[EventCountry "ITA"]
[SourceTitle "playchess.com"]
[Source "ChessBase"]
[SourceQuality "1"]
[TimeControl "40/5400+30:1800+30"]

1. e4 {[%emt 0:00:04]} e5 {[%emt 0:00:08]} 2. Nf3 {[%emt 0:00:07]} Nc6 {[%emt 0:00:04]} 3. d4 {[%emt 0:00:12]} exd4 {[%emt 0:00:11]} 4. Nxd4 {[%emt 0:00:10]} Bc5 {[%emt 0:00:10]} 5. Nb3 {[%emt 0:00:16]} Bb6 {[%emt 0:00:46]} 6. Nc3 {[%emt 0:00:13]} d6 {[%emt 0:01:48]} 7. Qe2 {[%emt 0:04:35]} h6 {[%emt 0:01:19]} 8. Bf4 {[%emt 0:01:02]} Be6 {[%emt 0:04:28]} 9. O-O-O {[%emt 0:01:28]} Qd7 {[%emt 0:03:10]} 10. h3 {[%emt 0:08:07]} O-O-O {[%emt 0:00:48]} 11. g4 {[%emt 0:00:45]} g5 {[%emt 0:00:31]} 12. Bg3 {[%emt 0:01:27]} Nge7 {[%emt 0:06:31]} 13. Bg2 {[%emt 0:02:24]} Kb8 {[%emt 0:01:15]} 14. Nb5 {[%emt 0:10:54]} Nc8 {[%emt 0:04:07]} 15. Kb1 {[%emt 0:05:39]} Qe7 {[%emt 0:03:04]} 16. Rhe1 {[%emt 0:02:11]} f6 {[%emt 0:08:52]} 17. Nc3 {[%emt 0:02:13]} Qf7 {[%emt 0:01:25]} 18. Nd5 {[%emt 0:02:57]} Rhe8 {[%emt 0:01:37]} 19. Qd2 {[%emt 0:03:11]} Ne5 {[%emt 0:11:48]} 20. Nd4 {[%emt 0:02:47]} Nc4 {[%emt 0:02:04]} 21. Qc3 {[%emt 0:01:25]} Bxd5 {[%emt 0:01:52]} 22. exd5 {[%emt 0:02:20]} Rxe1 {[%emt 0:00:30]} 23. Rxe1 {[%emt 0:01:35]} Ne5 {[%emt 0:01:22]} 24. Ne6 {[%emt 0:06:09]} Re8 {[%emt 0:06:02]} 25. a4 {[%emt 0:04:03]} a6 {[%emt 0:01:49]} 26. a5 {[%emt 0:01:05]} Ba7 {[%emt 0:00:04]} 27. Re4 {[%emt 0:03:58]} c5 {[%emt 0:10:03]} 28. f4 {[%emt 0:11:41]} Ng6 {[%emt 0:02:19]} 29. fxg5 {[%emt 0:06:27]} hxg5 {[%emt 0:01:30]} 30. Nxc5 {[%emt 0:00:25]} Bxc5 {[%emt 0:01:11]} 31. Qxc5 {[%emt 0:00:13]} Rxe4 {[%emt 0:00:48]} 32. Bxe4 {[%emt 0:00:11]} Nf4 {[%emt 0:00:34]} 33. Bxf4 {[%emt 0:00:35]} gxf4 {[%emt 0:00:03]} 34. Qf2 {[%emt 0:00:08]} Ne7 {[%emt 0:00:53]} 35. Qxf4 {[%emt 0:01:31]} Nxd5 {[%emt 0:02:34]} 36. Qxd6+ {[%emt 0:04:34]} Nc7 {[%emt 0:00:30]} 37. Qd8+ {[%emt 0:01:31]} Ka7 {[%emt 0:00:09]} 38. Qd4+ {[%emt 0:00:34]} Kb8 {[%emt 0:00:18]} 39. Qd8+ {[%emt 0:00:08]} Ka7 {[%emt 0:00:06]} 40. Qc8 {[%emt 0:00:00]} Nb5 {[%emt 0:00:00]} 41. c4 {[%emt 0:00:50]} Qe7 {[%emt 0:01:41]} 42. Qxb7+ {[%emt 0:00:53]} Qxb7 {[%emt 0:00:09]} 43. Bxb7 {[%emt 0:00:04]} Nd6 {[%emt 0:00:28]} 44. Bd5 {[%emt 0:00:05]} Kb8 {[%emt 0:00:35]} 45. h4 {[%emt 0:00:27]} f5 46. g5 {[%emt 0:01:00]} f4 {[%emt 0:00:54]} 47. h5 {[%emt 0:00:19]} Nf5 {[%emt 0:02:37]} 48. h6 {[%emt 0:00:28]} Ne7 {[%emt 0:00:15]} 49. Be4 {[%emt 0:00:24]} f3 {[%emt 0:00:24]} 50. Bxf3 {[%emt 0:00:04]} Ng6 {[%emt 0:00:05]} 51. Be4 {[%emt 0:00:07]} Nh8 {[%emt 0:00:03]} 52. g6 {[%emt 0:00:11]} Nf7 {[%emt 0:01:13]} 53. gxf7 {[%emt 0:00:09]} Ka7 {[%emt 0:00:02]} 54. f8=Q 1/2-1/2

[Event "FIDE WYCC Girls U18 2023"]
[Site "Montesilvano"]
[Date "2023.11.16"]
[Round "4.32"]
[White "Swara Lakshmi S Nair"]
[Black "Larsson, Susanne Wiggen"]
[Result "1-0"]
[ECO "B07"]
[WhiteElo "1659"]
[BlackElo "1159"]
[Annotator "NA COMBH RC"]
[PlyCount "33"]
[EventDate "2023.11.13"]
[EventType "swiss"]
[EventCountry "ITA"]
[SourceTitle "playchess.com"]
[Source "ChessBase"]
[SourceQuality "1"]
[TimeControl "40/5400+30:1800+30"]

1. e4 {[%emt 0:02:19]} d6 {[%emt 0:00:23]} 2. d4 {[%emt 0:00:56]} Nf6 {[%emt 0:00:18]} 3. Nc3 {[%emt 0:00:09]} g6 {[%emt 0:00:49]} 4. Be3 {[%emt 0:00:34]} c6 {[%emt 0:00:45]} 5. h3 {[%emt 0:08:03]} b5 {[%emt 0:05:02]} 6. e5 {[%emt 0:07:42]} Nfd7 {[%emt 0:10:00]} 7. exd6 {[%emt 0:15:55]} exd6 {[%emt 0:00:46]} 8. d5 {[%emt 0:00:10]} b4 {[%emt 0:06:11]} 9. Qd4 {[%emt 0:04:15]} Nf6 {[%emt 0:07:18]} 10. Qxb4 {[%emt 0:01:35]} cxd5 {[%emt 0:01:49]} 11. Bb5+ {[%emt 0:14:34]} Nbd7 {[%emt 0:03:10]} 12. Bc6 {[%emt 0:01:27]} a5 {[%emt 0:03:52]} 13. Qd4 {[%emt 0:06:07]} Ra6 {[%emt 0:08:28]} 14. Bb5 {[%emt 0:00:09]} Ra8 {[%emt 0:00:41]} 15. Nxd5 {[%emt 0:00:11]} Be7 {[%emt 0:02:18]} 16. Nxf6+ {[%emt 0:01:45]} Bxf6 {[%emt 0:00:23] 6.42} 17. Qe4+ {[%emt 0:00:02]} 1-0

[Event "FIDE WYCC Girls U18 2023"]
[Site "Montesilvano"]
[Date "2023.11.16"]
[Round "4.34"]
[White "Chavez Echeverria, Ana Karen"]
[Black "Graziani, Emma"]
[Result "1-0"]
[ECO "A43"]
[WhiteElo "1230"]
[BlackElo "1783"]
[Annotator "NA RC"]
[PlyCount "115"]
[EventDate "2023.11.13"]
[EventType "swiss"]
[EventCountry "ITA"]
[SourceTitle "playchess.com"]
[Source "ChessBase"]
[SourceQuality "1"]
[TimeControl "40/5400+30:1800+30"]

1. d4 {[%emt 0:00:04]} c5 {[%emt 0:00:19]} 2. dxc5 {[%emt 0:00:14]} e6 {[%emt 0:00:08]} 3. Bf4 {[%emt 0:00:46]} Bxc5 {[%emt 0:00:20]} 4. Nf3 {[%emt 0:00:40]} d5 {[%emt 0:00:10]} 5. e3 {[%emt 0:01:12]} Nf6 {[%emt 0:00:47]} 6. Bd3 {[%emt 0:02:19]} O-O {[%emt 0:00:09]} 7. O-O {[%emt 0:00:07]} Nc6 {[%emt 0:00:13]} 8. Nbd2 {[%emt 0:01:34]} Re8 {[%emt 0:00:52]} 9. Bg5 {[%emt 0:09:24]} h6 {[%emt 0:00:37]} 10. Bh4 {[%emt 0:00:16]} Be7 {[%emt 0:05:42]} 11. Re1 {[%emt 0:05:34]} g5 {[%emt 0:10:14]} 12. Bg3 {[%emt 0:00:53]} Nh7 {[%emt 0:01:43]} 13. Nd4 {[%emt 0:03:00]} Bf6 {[%emt 0:05:47]} 14. c3 {[%emt 0:02:32]} Bg7 {[%emt 0:03:28]} 15. Nxc6 {[%emt 0:10:10]} bxc6 {[%emt 0:00:12]} 16. Qf3 {[%emt 0:06:11]} f5 {[%emt 0:02:22]} 17. Rad1 {[%emt 0:04:07]} Qf6 {[%emt 0:01:30]} 18. h3 {[%emt 0:10:31]} e5 {[%emt 0:02:05]} 19. Qe2 {[%emt 0:02:14]} e4 {[%emt 0:02:21]} 20. Bb1 {[%emt 0:01:27]} f4 {[%emt 0:01:09]} 21. exf4 {[%emt 0:01:40]} gxf4 {[%emt 0:00:12]} 22. Qh5 {[%emt 0:02:16]} Re5 {[%emt 0:08:11]} 23. Qh4 {[%emt 0:03:25]} fxg3 {[%emt 0:00:22]} 24. Qxg3 {[%emt 0:00:29]} Rg5 {[%emt 0:00:39]} 25. Qh2 {[%emt 0:00:27]} Bf8 {[%emt 0:02:49]} 26. Bxe4 {[%emt 0:02:58]} dxe4 {[%emt 0:02:45]} 27. Nxe4 {[%emt 0:00:05]} Qg7 {[%emt 0:00:39]} 28. Nxg5 {[%emt 0:00:25]} Nxg5 {[%emt 0:00:11]} 29. Re3 {[%emt 0:00:55]} Kh7 {[%emt 0:01:18]} 30. h4 {[%emt 0:02:31]} Ne6 {[%emt 0:01:58]} 31. Rde1 {[%emt 0:00:41]} Qf7 {[%emt 0:01:01]} 32. Rf3 {[%emt 0:01:04]} Qg7 {[%emt 0:01:11]} 33. Kh1 {[%emt 0:01:13]} a5 {[%emt 0:00:23]} 34. Rfe3 {[%emt 0:03:07]} Qf7 {[%emt 0:01:09]} 35. Qe5 {[%emt 0:02:53]} Bd7 {[%emt 0:06:41]} 36. Qe4+ {[%emt 0:00:40]} Kh8 {[%emt 0:00:24]} 37. Qe5+ {[%emt 0:01:52]} Bg7 {[%emt 0:00:25]} 38. Qg3 {[%emt 0:01:05]} a4 {[%emt 0:00:36]} 39. a3 {[%emt 0:02:01]} Rg8 {[%emt 0:02:45]} 40. Rf3 {[%emt 0:00:00]} Qe7 {[%emt 0:00:00]} 41. Qh3 {[%emt 0:05:03]} Qd6 {[%emt 0:08:19]} 42. Rd3 {[%emt 0:00:51]} Qe7 {[%emt 0:02:17]} 43. Rxd7 {[%emt 0:00:19]} Qxd7 {[%emt 0:00:12]} 44. Qxe6 {[%emt 0:00:08]} Qxe6 {[%emt 0:00:23]} 45. Rxe6 {[%emt 0:00:08]} Rc8 {[%emt 0:00:46]} 46. Re7 {[%emt 0:00:29]} Rb8 {[%emt 0:00:58]} 47. Re2 {[%emt 0:00:25]} Kg8 {[%emt 0:00:27]} 48. Kg1 {[%emt 0:00:28]} Kf7 {[%emt 0:00:04]} 49. Kf1 {[%emt 0:00:17]} Rb7 {[%emt 0:00:13]} 50. Ke1 {[%emt 0:01:13]} Rxb2 {[%emt 0:00:35]} 51. Rxb2 {[%emt 0:00:23]} Bxc3+ {[%emt 0:00:04]} 52. Rd2 {[%emt 0:00:06]} Bxd2+ {[%emt 0:00:13]} 53. Kxd2 {[%emt 0:00:05]} Ke6 {[%emt 0:00:24]} 54. Kc3 {[%emt 0:00:07]} Kd5 {[%emt 0:00:07]} 55. g4 {[%emt 0:00:32]} Ke5 {[%emt 0:00:12]} 56. Kc4 {[%emt 0:00:37]} Kf4 {[%emt 0:00:07]} 57. f3 {[%emt 0:00:06]} Ke5 {[%emt 0:00:41]} 58. Kc5 {[%emt 0:00:13]} 1-0

[Event "FIDE WYCC Girls U18 2023"]
[Site "Montesilvano"]
[Date "2023.11.16"]
[Round "4.35"]
[White "Galli, Maria Vittoria"]
[Black "Nielsen-Refs, Ingrid Elmer"]
[Result "1/2-1/2"]
[ECO "B30"]
[WhiteElo "1452"]
[BlackElo "1676"]
[Annotator "NA RC"]
[PlyCount "69"]
[EventDate "2023.11.13"]
[EventType "swiss"]
[EventCountry "ITA"]
[SourceTitle "playchess.com"]
[Source "ChessBase"]
[SourceQuality "1"]
[TimeControl "40/5400+30:1800+30"]

1. e4 c5 {[%emt 0:00:30]} 2. Nf3 {[%emt 0:01:00]} Nc6 {[%emt 0:00:30]} 3. c3 {[%emt 0:00:07]} Nf6 {[%emt 0:01:14]} 4. e5 {[%emt 0:00:00]} Nd5 {[%emt 0:00:00]} 5. d4 {[%emt 0:00:00]} cxd4 {[%emt 0:00:00]} 6. cxd4 {[%emt 0:00:00]} d6 {[%emt 0:02:53]} 7. Bc4 {[%emt 0:04:27]} e6 {[%emt 0:08:44]} 8. O-O {[%emt 0:03:45]} Nb6 {[%emt 0:02:55]} 9. Bb3 {[%emt 0:04:14]} Be7 {[%emt 0:01:26]} 10. Nc3 {[%emt 0:03:50]} O-O {[%emt 0:01:30]} 11. Re1 {[%emt 0:08:40]} a6 {[%emt 0:03:14]} 12. Be3 {[%emt 0:05:20]} Qc7 {[%emt 0:06:23]} 13. Rc1 {[%emt 0:05:51]} Rd8 {[%emt 0:05:29]} 14. Qe2 {[%emt 0:03:03]} dxe5 {[%emt 0:09:11]} 15. dxe5 {[%emt 0:01:34]} Nd7 {[%emt 0:04:22]} 16. Bf4 {[%emt 0:06:07]} b5 {[%emt 0:06:48]} 17. Ne4 {[%emt 0:06:08]} Bb7 {[%emt 0:14:34]} 18. Nd6 {[%emt 0:02:33]} Bxd6 {[%emt 0:03:26]} 19. exd6 {[%emt 0:00:10]} Qa5 {[%emt 0:05:03]} 20. Ng5 {[%emt 0:09:11]} Nf8 {[%emt 0:10:26]} 21. Red1 {[%emt 0:07:58]} Rd7 {[%emt 0:03:59]} 22. h4 {[%emt 0:05:27]} Qb4 {[%emt 0:01:42]} 23. Bg3 {[%emt 0:01:13]} Nd4 {[%emt 0:01:41]} 24. Qd2 {[%emt 0:08:17]} Qxd2 {[%emt 0:00:52]} 25. Rxd2 {[%emt 0:00:08]} Nxb3 {[%emt 0:00:32]} 26. axb3 {[%emt 0:00:05]} Bd5 {[%emt 0:01:02]} 27. b4 {[%emt 0:00:33]} h5 {[%emt 0:02:24]} 28. Rdc2 {[%emt 0:02:02]} Rad8 {[%emt 0:01:10]} 29. Rc7 {[%emt 0:01:17]} f6 {[%emt 0:00:39]} 30. Nh3 {[%emt 0:03:20]} e5 {[%emt 0:00:39]} 31. f4 {[%emt 0:00:12]} Rxd6 {[%emt 0:00:36]} 32. fxe5 {[%emt 0:00:14]} fxe5 {[%emt 0:00:54]} 33. Bxe5 {[%emt 0:00:30]} R6d7 {[%emt 0:00:35]} 34. Rxd7 {[%emt 0:01:49]} Nxd7 {[%emt 0:00:39]} 35. Bc3 {[%emt 0:00:27]} 1/2-1/2

[Event "FIDE WYCC Girls U18 2023"]
[Site "Montesilvano"]
[Date "2023.11.17"]
[Round "5.1"]
[White "Wikar, Martyna"]
[Black "Naymanova, Patricie"]
[Result "1-0"]
[ECO "B47"]
[WhiteElo "2228"]
[BlackElo "2083"]
[Annotator "ChessBase"]
[PlyCount "71"]
[EventDate "2023.11.13"]
[EventType "swiss"]
[EventCountry "ITA"]
[SourceTitle "playchess.com"]
[Source "ChessBase"]
[SourceQuality "1"]
[TimeControl "40/5400+30:1800+30"]

1. e4 {[%emt 0:00:03]} c5 {[%emt 0:00:05]} 2. Nf3 {[%emt 0:00:17]} e6 {[%emt 0:00:05]} 3. d4 {[%emt 0:00:17]} cxd4 {[%emt 0:00:05]} 4. Nxd4 {[%emt 0:00:05]} Nc6 {[%emt 0:00:05]} 5. Nc3 {[%emt 0:00:07]} Qc7 {[%emt 0:00:11]} 6. f4 {[%emt 0:02:31]} a6 {[%emt 0:01:38]} 7. Nxc6 {[%emt 0:00:08]} Qxc6 {[%emt 0:00:05]} 8. Bd3 {[%emt 0:00:37]} b5 {[%emt 0:01:04]} 9. Qe2 {[%emt 0:01:05]} Bb7 {[%emt 0:00:07]} 10. Bd2 {[%emt 0:05:21]} Be7 {[%emt 0:02:20]} 11. a3 {[%emt 0:00:29]} Nf6 {[%emt 0:02:42]} 12. O-O-O {[%emt 0:06:47]} b4 {[%emt 0:01:52]} 13. axb4 {[%emt 0:01:10]} Bxb4 {[%emt 0:00:08]} 14. Rhe1 {[%emt 0:03:51]} Rb8 {[%emt 0:30:58]} 15. g4 {[%emt 0:09:35]} O-O {[%emt 0:05:11]} 16. g5 {[%emt 0:09:23]} Ne8 {[%emt 0:01:37]} 17. Qh5 {[%emt 0:04:30]} f5 {[%emt 0:30:52]} 18. gxf6 {[%emt 0:04:31]} Rxf6 {[%emt 0:06:23]} 19. Rg1 {[%emt 0:04:07]} Kh8 {[%emt 0:03:12]} 20. e5 {[%emt 0:04:16]} Rh6 {[%emt 0:00:42]} 21. Qf7 {[%emt 0:00:12]} Qc5 {[%emt 0:02:30]} 22. f5 {[%emt 0:03:28]} Rxh2 {[%emt 0:02:10]} 23. f6 {[%emt 0:02:16]} Qf8 {[%emt 0:00:41]} 24. Qxd7 {[%emt 0:07:43]} gxf6 {[%emt 0:01:44]} 25. Qxe6 {[%emt 0:06:53]} Bc8 {[%emt 0:02:03]} 26. Qc4 {[%emt 0:01:00]} Bc5 {[%emt 0:01:38]} 27. Rh1 {[%emt 0:02:06]} Rxh1 {[%emt 0:00:52]} 28. Rxh1 {[%emt 0:00:01]} f5 {[%emt 0:00:09]} 29. Rxh7+ {[%emt 0:09:59]} Kxh7 {[%emt 0:00:03]} 30. Qh4+ {[%emt 0:00:06]} Kg6 {[%emt 0:00:51]} 31. Qg5+ {[%emt 0:00:39]} Kf7 {[%emt 0:00:57]} 32. Bc4+ {[%emt 0:00:39]} Be6 {[%emt 0:00:07]} 33. Qxf5+ {[%emt 0:00:28]} Ke7 {[%emt 0:00:03]} 34. Bg5+ {[%emt 0:00:55]} Kd7 {[%emt 0:00:55]} 35. Qxe6+ {[%emt 0:00:14]} Kc7 {[%emt 0:00:05]} 36. Nd5+ {[%emt 0:00:08]} 1-0

[Event "FIDE WYCC Girls U18 2023"]
[Site "Montesilvano"]
[Date "2023.11.17"]
[Round "5.2"]
[White "Zhurova, Anna"]
[Black "Nguyen Hong Nhung"]
[Result "1-0"]
[ECO "B48"]
[WhiteElo "2149"]
[BlackElo "1975"]
[Annotator "ChessBase"]
[PlyCount "181"]
[EventDate "2023.11.13"]
[EventType "swiss"]
[EventCountry "ITA"]
[SourceTitle "playchess.com"]
[Source "ChessBase"]
[SourceQuality "1"]
[TimeControl "40/5400+30:1800+30"]

1. e4 {[%emt 0:01:48]} c5 {[%emt 0:00:26]} 2. Nf3 {[%emt 0:00:17]} e6 {[%emt 0:00:12]} 3. d4 {[%emt 0:00:06]} cxd4 {[%emt 0:00:05]} 4. Nxd4 {[%emt 0:00:05]} Nc6 {[%emt 0:00:05]} 5. Nc3 {[%emt 0:00:18]} Qc7 {[%emt 0:00:08]} 6. Be3 {[%emt 0:00:07]} a6 {[%emt 0:00:08]} 7. g4 {[%emt 0:00:11]} b5 {[%emt 0:00:32]} 8. Nxc6 {[%emt 0:00:08]} Qxc6 {[%emt 0:02:21]} 9. Qd2 {[%emt 0:00:07]} b4 {[%emt 0:01:04]} 10. Ne2 {[%emt 0:00:07]} Nf6 {[%emt 0:02:11]} 11. f3 {[%emt 0:00:11]} Bb7 {[%emt 0:03:41]} 12. g5 {[%emt 0:04:21]} Nh5 {[%emt 0:02:01]} 13. O-O-O {[%emt 0:00:35]} Rc8 {[%emt 0:01:36]} 14. Nd4 {[%emt 0:07:46]} Qc7 {[%emt 0:02:49]} 15. Nb3 {[%emt 0:07:46]} Be7 {[%emt 0:18:30]} 16. Na5 {[%emt 0:05:50]} b3 {[%emt 0:13:29]} 17. Nxb3 {[%emt 0:01:58]} O-O {[%emt 0:03:59]} 18. Bd3 {[%emt 0:00:53]} d5 {[%emt 0:02:26]} 19. Kb1 {[%emt 0:01:29]} Bd6 {[%emt 0:08:25]} 20. exd5 {[%emt 0:19:56]} Bxd5 {[%emt 0:03:09]} 21. Bxa6 {[%emt 0:01:13]} Ra8 {[%emt 0:07:55]} 22. Be2 {[%emt 0:00:11]} Rfd8 {[%emt 0:01:31]} 23. Rhf1 {[%emt 0:13:00]} Bxh2 {[%emt 0:09:55]} 24. Bd3 {[%emt 0:04:39]} Bf4 {[%emt 0:03:56]} 25. Bxf4 {[%emt 0:01:34]} Nxf4 {[%emt 0:00:39]} 26. Qh2 {[%emt 0:01:58]} g6 {[%emt 0:01:00]} 27. Rh1 {[%emt 0:06:40]} h5 {[%emt 0:00:39]} 28. gxh6 {[%emt 0:01:57]} Kh7 {[%emt 0:01:12]} 29. Be4 {[%emt 0:03:43]} e5 {[%emt 0:06:17]} 30. Bxd5 {[%emt 0:04:06]} Nxd5 {[%emt 0:00:09]} 31. Rhe1 {[%emt 0:00:51]} Qa7 {[%emt 0:00:21]} 32. a3 {[%emt 0:02:16]} f6 {[%emt 0:02:47]} 33. Rd2 {[%emt 0:02:16]} Rd7 {[%emt 0:01:56]} 34. Red1 {[%emt 0:01:22]} Rad8 {[%emt 0:00:09]} 35. c4 {[%emt 0:01:48]} Nf4 {[%emt 0:00:43]} 36. Rxd7+ {[%emt 0:01:14]} Rxd7 {[%emt 0:00:05]} 37. Rxd7+ {[%emt 0:00:03]} Qxd7 {[%emt 0:00:05]} 38. Qc2 {[%emt 0:00:05]} Kxh6 {[%emt 0:00:34]} 39. c5 {[%emt 0:02:49]} g5 {[%emt 0:01:24]} 40. c6 {[%emt 0:00:00]} Qc7 {[%emt 0:00:00]} 41. Na5 {[%emt 0:04:56]} e4 {[%emt 0:07:26]} 42. fxe4 {[%emt 0:01:42]} g4 {[%emt 0:00:30]} 43. Qc3 {[%emt 0:01:35]} Kg6 {[%emt 0:04:31]} 44. Qc4 {[%emt 0:04:37]} Kh5 {[%emt 0:03:24]} 45. Qb5+ {[%emt 0:02:54]} Kh4 {[%emt 0:00:09]} 46. Nc4 {[%emt 0:00:19]} g3 {[%emt 0:01:33]} 47. Ne3 {[%emt 0:00:22]} g2 {[%emt 0:06:38]} 48. Nxg2+ {[%emt 0:01:03]} Nxg2 {[%emt 0:00:06]} 49. Qb7 {[%emt 0:01:54]} Qf4 {[%emt 0:00:13]} 50. Qh7+ {[%emt 0:07:24]} Kg3 {[%emt 0:00:16]} 51. Qg6+ {[%emt 0:01:10]} Kh2 {[%emt 0:00:16]} 52. Qf5 {[%emt 0:00:26]} Qd6 {[%emt 0:01:58]} 53. Qh7+ {[%emt 0:00:58]} Kg1 {[%emt 0:03:22]} 54. Qd7 {[%emt 0:00:54]} Qf4 {[%emt 0:00:23]} 55. Qd1+ {[%emt 0:05:01]} Kh2 {[%emt 0:00:17]} 56. Qh5+ {[%emt 0:02:34]} Kg3 {[%emt 0:02:53]} 57. Qf5 {[%emt 0:00:26]} Qd6 {[%emt 0:00:38]} 58. Qd5 {[%emt 0:00:52]} Qf4 {[%emt 0:01:10]} 59. Qd3+ {[%emt 0:01:59]} Kh2 {[%emt 0:00:50]} 60. Qc2 {[%emt 0:00:37]} Qc7 {[%emt 0:01:11]} 61. a4 {[%emt 0:00:51]} Kg3 {[%emt 0:01:22]} 62. Qd3+ {[%emt 0:00:35]} Kh4 {[%emt 0:01:26]} 63. Qd7 {[%emt 0:00:54]} Qf4 {[%emt 0:00:24]} 64. Qh7+ {[%emt 0:00:47]} Kg3 {[%emt 0:00:08]} 65. Qf5 {[%emt 0:00:37]} Qd2 {[%emt 0:01:26]} 66. Qd5 {[%emt 0:00:41]} Qf4 {[%emt 0:00:27]} 67. Qd3+ {[%emt 0:00:25]} Kh4 {[%emt 0:00:22]} 68. a5 {[%emt 0:00:45]} Ne1 {[%emt 0:00:27]} 69. Qe2 {[%emt 0:00:05]} Nf3 {[%emt 0:00:54]} 70. a6 {[%emt 0:01:24]} f5 {[%emt 0:01:25]} 71. a7 {[%emt 0:00:35]} Nd2+ {[%emt 0:00:30]} 72. Kc2 {[%emt 0:00:25]} Nf3 {[%emt 0:00:15]} 73. Qf2+ {[%emt 0:00:34]} Kh3 {[%emt 0:00:18]} 74. a8=Q {[%emt 0:00:30]} Qxe4+ {[%emt 0:00:09]} 75. Kc1 {[%emt 0:00:35]} Qf4+ {[%emt 0:01:05]} 76. Kd1 {[%emt 0:00:40]} Qd6+ {[%emt 0:00:17]} 77. Ke2 {[%emt 0:00:30]} Qd2+ {[%emt 0:00:53]} 78. Kxf3 {[%emt 0:00:36]} Qd3+ {[%emt 0:00:35]} 79. Kf4 {[%emt 0:00:21]} Qe4+ {[%emt 0:00:39]} 80. Kg5 {[%emt 0:00:03]} Qe7+ {[%emt 0:00:11]} 81. Kxf5 {[%emt 0:00:59]} Qf8+ {[%emt 0:00:43]} 82. Ke6 {[%emt 0:00:37]} Qxa8 {[%emt 0:00:19]} 83. Qe3+ {[%emt 0:00:23]} Kg4 {[%emt 0:00:08]} 84. Qd4+ {[%emt 0:00:03]} Kg5 {[%emt 0:00:09]} 85. Kd7 {[%emt 0:00:22]} Kf5 {[%emt 0:01:00]} 86. c7 {[%emt 0:00:28]} Qb7 {[%emt 0:00:15]} 87. Qc5+ {[%emt 0:00:19]} Kf4 {[%emt 0:00:15]} 88. Kd8 {[%emt 0:00:26]} Qxb2 {[%emt 0:00:20]} 89. c8=Q {[%emt 0:00:45]} Qh8+ {[%emt 0:00:22]} 90. Kc7 {[%emt 0:00:07]} Qg7+ {[%emt 0:00:14]} 91. Qd7 {[%emt 0:00:15]} 1-0

[Event "FIDE WYCC Girls U18 2023"]
[Site "Montesilvano"]
[Date "2023.11.17"]
[Round "5.3"]
[White "Mungunzul, Bat-Erdene"]
[Black "Petricenco, Ana"]
[Result "1/2-1/2"]
[ECO "D17"]
[WhiteElo "2111"]
[BlackElo "1902"]
[Annotator "NA"]
[PlyCount "118"]
[EventDate "2023.11.13"]
[EventType "swiss"]
[EventCountry "ITA"]
[SourceTitle "playchess.com"]
[Source "ChessBase"]
[SourceQuality "1"]
[TimeControl "40/5400+30:1800+30"]

1. d4 {[%emt 0:00:05]} d5 {[%emt 0:00:13]} 2. c4 {[%emt 0:00:08]} c6 {[%emt 0:00:07]} 3. Nc3 {[%emt 0:00:06]} Nf6 {[%emt 0:00:12]} 4. Nf3 {[%emt 0:00:16]} dxc4 {[%emt 0:00:20]} 5. a4 {[%emt 0:00:21]} Bf5 {[%emt 0:00:19]} 6. Ne5 {[%emt 0:00:17]} Nbd7 {[%emt 0:01:36]} 7. Nxc4 {[%emt 0:00:18]} Qc7 {[%emt 0:00:18]} 8. g3 {[%emt 0:01:12]} e5 {[%emt 0:00:36]} 9. dxe5 {[%emt 0:02:06]} Nxe5 {[%emt 0:00:08]} 10. Bf4 {[%emt 0:00:29]} Nfd7 {[%emt 0:00:22]} 11. Bg2 {[%emt 0:00:43]} g5 {[%emt 0:02:41]} 12. Ne3 {[%emt 0:00:09]} gxf4 {[%emt 0:00:08]} 13. Nxf5 {[%emt 0:00:10]} O-O-O {[%emt 0:00:12]} 14. Qc2 {[%emt 0:00:33]} Nc5 {[%emt 0:00:51]} 15. O-O {[%emt 0:00:27]} fxg3 {[%emt 0:00:45]} 16. hxg3 {[%emt 0:00:18]} a5 {[%emt 0:00:57]} 17. Rad1 {[%emt 0:03:34]} h5 {[%emt 0:01:59]} 18. Rxd8+ {[%emt 0:01:06]} Qxd8 {[%emt 0:00:10]} 19. Rd1 {[%emt 0:00:37]} Qf6 {[%emt 0:00:11]} 20. Bh3 {[%emt 0:00:21]} Kb8 {[%emt 0:08:45]} 21. Qd2 {[%emt 0:01:57]} Ng6 {[%emt 0:06:29]} 22. Qe3 {[%emt 0:05:12]} Qe5 {[%emt 0:03:15]} 23. Qxe5+ {[%emt 0:08:00]} Nxe5 {[%emt 0:00:09]} 24. Rd4 {[%emt 0:00:05]} Kc7 {[%emt 0:06:23]} 25. Kg2 {[%emt 0:06:57]} Ne6 {[%emt 0:08:22]} 26. Re4 {[%emt 0:15:28]} Ng6 {[%emt 0:01:22]} 27. Nh4 {[%emt 0:04:40]} Nxh4+ {[%emt 0:04:16]} 28. Rxh4 {[%emt 0:00:08]} Bg7 {[%emt 0:08:13]} 29. Bxe6 {[%emt 0:04:39]} fxe6 {[%emt 0:00:05]} 30. Nd1 {[%emt 0:00:50]} Bf6 {[%emt 0:11:45]} 31. Re4 {[%emt 0:04:00]} Kd6 {[%emt 0:02:18]} 32. b3 {[%emt 0:07:34]} b5 {[%emt 0:07:40]} 33. Ne3 {[%emt 0:09:51]} Rb8 {[%emt 0:03:18]} 34. f3 {[%emt 0:04:12]} Rg8 {[%emt 0:06:38]} 35. Nd1 {[%emt 0:06:42]} Be5 {[%emt 0:05:13]} 36. f4 {[%emt 0:00:52]} Bf6 {[%emt 0:00:05]} 37. Nf2 {[%emt 0:00:27]} e5 {[%emt 0:03:41]} 38. Kf3 {[%emt 0:05:24]} exf4 {[%emt 0:01:46]} 39. Rxf4 {[%emt 0:00:44]} Be5 {[%emt 0:00:28]} 40. Ne4+ {[%emt 0:00:00]} Ke6 {[%emt 0:00:00]} 41. Rh4 {[%emt 0:00:51]} Rf8+ {[%emt 0:04:04]} 42. Kg2 {[%emt 0:13:23]} Kd5 {[%emt 0:06:33]} 43. Ng5 {[%emt 0:03:33]} bxa4 {[%emt 0:05:26]} 44. bxa4 {[%emt 0:02:02]} c5 {[%emt 0:06:41]} 45. Rxh5 {[%emt 0:01:14]} Rh8 {[%emt 0:00:25]} 46. e4+ {[%emt 0:09:07]} Kc4 {[%emt 0:01:25]} 47. Rxh8 {[%emt 0:00:38]} Bxh8 {[%emt 0:00:01]} 48. Nf7 {[%emt 0:00:07]} Bg7 {[%emt 0:01:27]} 49. Kf3 {[%emt 0:00:21]} Kd4 {[%emt 0:04:15]} 50. Nd6 {[%emt 0:02:45]} Be5 {[%emt 0:02:12]} 51. Nf7 {[%emt 0:01:38]} Bf6 {[%emt 0:00:45]} 52. e5 {[%emt 0:01:21]} Be7 {[%emt 0:02:31]} 53. Kf4 {[%emt 0:02:59]} c4 {[%emt 0:01:25]} 54. Nd6 {[%emt 0:00:06]} c3 {[%emt 0:00:04]} 55. Nb5+ {[%emt 0:00:43]} Kd3 {[%emt 0:00:04]} 56. Nxc3 {[%emt 0:00:14]} Kxc3 {[%emt 0:00:02]} 57. g4 {[%emt 0:00:06]} Kd4 {[%emt 0:00:59]} 58. Kf5 {[%emt 0:00:54]} Kd5 {[%emt 0:00:16]} 59. g5 {[%emt 0:00:25]} Bxg5 {[%emt 0:00:04]} 1/2-1/2